bitfinex-derivatives/quotes_ETHF0:USTF0_20251211
["timestamp","ask_amount","ask_price","bid_price","bid_amount"]
[1765420298069,7.9471,3216.2,3216.1,0.16009425]
[1765420298266,11.1549,3216.2,3216.1,0.16009425]
[1765420299064,11.1549,3216.2,3216.1,0.16339881]
[1765420299570,4.1295,3215.2,3215.1,3.2078]
[1765420299960,7.9471,3215.2,3215.1,3.36328]
[1765420300163,2.4165,3215.5,3215.4,0.15547]
[1765420300369,6.546,3215.5,3215.4,4.16937]
[1765420300569,6.546,3215.5,3215.4,4.1732755]
[1765420300870,10.3636,3215.5,3215.4,0.1593755]
[1765420303674,7.9471,3215.2,3215.1,0.00466425]
[1765420303875,11.1549,3215.2,3215.1,0.00466425]
[1765420304073,7.9471,3215.1,3215.0,0.15549]
[1765420304566,7.9471,3215.1,3215.0,0.15759372]
[1765420307176,3.2078,3215.2,3215.0,0.15759372]
[1765420307177,11.1549,3215.2,3215.1,4.16938]
[1765420307379,11.1549,3215.2,3215.1,0.15548]
[1765420308081,7.9471,3214.4,3214.3,3.2078]
[1765420308273,2.4165,3214.5,3214.4,4.16942]
[1765420308580,10.3636,3214.5,3214.4,4.16942]
[1765420309084,10.366603,3214.5,3214.4,0.15552]
[1765420314678,4.1295,3213.9,3213.8,11.1457]
[1765420314880,2.4165,3214.0,3213.9,8.09344]
[1765420315084,0.00466425,3214.2,3214.1,8.09343]
[1765420315580,7.95176425,3214.2,3214.1,0.15553]
[1765420315783,0.00466425,3214.2,3214.1,8.09343]
[1765420316984,7.95176425,3214.2,3214.1,4.16943]
[1765420317184,4.13416425,3214.2,3214.1,4.16943]
[1765420317376,7.95176425,3214.2,3214.1,0.15553]
[1765420318485,0.00466425,3214.2,3214.1,7.96803]
[1765420319680,3.07829729,3214.8,3214.7,0.1555]
[1765420319884,3.07829729,3214.8,3214.7,7.5117]
[1765420320678,10.39819729,3214.8,3214.7,0.1555]
[1765420320878,10.40074685,3214.8,3214.7,3.71584005]
[1765420321081,6.62414685,3214.8,3214.7,7.51444005]
[1765420321486,10.40074685,3214.8,3214.7,0.15824005]
[1765420321678,10.40074685,3214.8,3214.7,4.005e-05]
[1765420322484,10.40074685,3214.8,3214.7,0.15554005]
[1765420322887,9.4348,3214.5,3214.4,0.00466425]
[1765420323584,7.3199,3214.3,3214.2,0.15552]
[1765420325487,2.1149,3214.5,3214.3,0.15552]
[1765420325693,3.5433,3214.4,3214.3,7.51172]
[1765420325995,3.08084685,3214.8,3214.7,7.5117]
[1765420326191,6.62414685,3214.8,3214.7,7.5117]
[1765420326392,10.40074685,3214.8,3214.7,0.1555]
[1765420326588,3.08084685,3214.8,3214.7,7.5117]
[1765420326794,3.08084685,3214.8,3214.7,9.93690554]
[1765420327191,3.08084685,3214.8,3214.7,15.93690554]
[1765420327487,3.08084685,3214.8,3214.7,7.5117]
[1765420327888,3.08084685,3214.8,3214.7,13.5117]
[1765420328085,0.00466425,3215.1,3215.0,7.51169]
[1765420329093,0.00811429,3215.1,3215.0,7.51450252]
[1765420329891,3.55141429,3215.1,3215.0,7.51450252]
[1765420330088,3.55141429,3215.1,3215.0,3.71590252]
[1765420330290,7.32801429,3215.1,3215.0,0.15830252]
[1765420331591,7.0919,3214.2,3213.6,2.42520554]
[1765420331887,3.5765,3214.4,3214.3,3.90862]
[1765420332082,7.0919,3214.4,3214.3,3.90862]
[1765420332289,7.0919,3214.4,3214.3,0.15552]
[1765420332996,2.2919,3214.5,3213.2,2.42520554]
[1765420332997,7.0919,3213.9,3213.2,2.42520554]
[1765420333391,7.0919,3213.9,3213.8,3.36335]
[1765420333691,9.3838,3213.0,3212.9,0.15559]
[1765420334093,7.0919,3212.7,3212.6,0.27606521]
[1765420334296,7.09569432,3212.7,3212.6,0.27606521]
[1765420335092,7.0919,3210.9,3210.8,2.69211117]
[1765420335293,2.29657166,3211.2,3211.1,3.7531]
[1765420335593,2.2919,3211.8,3211.1,0.31978252]
[1765420335794,2.2919,3211.8,3211.5,0.15565]
[1765420335992,2.2919,3211.8,3211.2,2.42520554]
[1765420335993,2.2919,3211.8,3211.6,0.15565]
[1765420336186,2.2919,3211.8,3211.7,0.15565]
[1765420336392,2.2919,3212.4,3212.0,0.15563]
[1765420336598,7.09657166,3212.1,3212.0,0.15563]
[1765420336790,0.00467166,3212.1,3212.0,3.90873]
[1765420336992,0.00467166,3212.1,3212.0,4.17035395]
[1765420337188,7.09657166,3212.1,3212.0,0.41725395]
[1765420337392,2.2919,3213.0,3212.6,0.1556]
[1765420337698,7.09569432,3212.7,3212.6,0.1556]
[1765420337899,7.09569432,3212.7,3212.0,0.26162395]
[1765420337900,7.0919,3212.1,3212.0,0.26162395]
[1765420338294,7.0919,3211.9,3211.8,0.15564]
[1765420338602,7.0919,3211.9,3211.8,0.18472019]
[1765420339490,2.2919,3211.8,3211.4,7.58907166]
[1765420339800,3.58117166,3212.2,3212.1,0.15563]
[1765420339992,0.00467166,3212.2,3212.1,3.90873]
[1765420340192,0.00467166,3212.2,3212.1,4.05403138]
[1765420340393,0.00467166,3212.2,3212.1,7.88533138]
[1765420340593,0.00379432,3212.7,3212.6,0.1556]
[1765420340794,0.00379432,3212.7,3212.6,3.9087]
[1765420341019,3.5765,3213.4,3213.3,0.15557]
[1765420341195,7.0919,3213.4,3213.3,0.15557]
[1765420342003,7.09576909,3213.4,3213.3,0.15924719]
[1765420342306,0.00386909,3213.4,3213.3,0.15924719]
[1765420343308,7.09576909,3213.4,3213.3,0.15924719]
[1765420345806,3.58036909,3213.4,3213.3,0.15924719]
[1765420346308,7.09576909,3213.4,3213.3,0.15924719]
[1765420347608,7.09576909,3213.4,3213.3,4.719e-05]
[1765420347804,7.0919,3213.1,3213.0,0.00467166]
[1765420348210,3.8406,3213.1,3213.0,0.00467166]
[1765420348609,7.44976909,3213.4,3213.3,0.15557]
[1765420348806,7.44976909,3213.4,3213.3,0.15815663]
[1765420349113,9.7501,3212.4,3212.3,0.15562]
[1765420349612,6.1448,3212.4,3212.3,0.15562]
[1765420350308,6.1448,3213.0,3212.9,0.15559]
[1765420350514,9.7501,3213.0,3212.9,0.15559]
[1765420354810,0.00386909,3213.4,3213.3,3.94477]
[1765420355005,3.84446909,3213.4,3213.3,3.94477]
[1765420355212,7.44976909,3213.4,3213.3,0.15557]
[1765420356313,3.84446909,3213.4,3213.3,0.15557]
[1765420356509,0.00386909,3213.4,3213.3,3.94477]
[1765420358514,6.1325,3214.2,3214.1,0.15553]
[1765420358707,9.7378,3214.2,3214.1,0.15553]
[1765420359010,6.1325,3214.2,3214.1,0.15553]
[1765420359313,6.1325,3214.2,3213.3,0.15557]
[1765420359314,7.4459,3213.4,3213.3,0.15557]
[1765420359615,7.4459,3213.4,3213.3,0.15866688]
[1765420359807,7.4459,3213.4,3213.0,0.00467166]
[1765420360002,7.4459,3213.1,3213.0,0.00467166]
[1765420361310,2.3042,3213.6,3213.1,0.15558]
[1765420361509,7.4459,3213.2,3213.1,0.15558]
[1765420364516,3.8406,3213.2,3213.1,0.15558]
[1765420365410,7.4459,3213.4,3213.3,0.15557]
[1765420366518,3.8406,3213.4,3213.3,0.15557]
[1765420366821,7.4459,3213.4,3213.3,0.15557]
[1765420367513,9.7501,3213.6,3213.5,0.15556]
[1765420367720,6.1448,3213.6,3213.5,0.15556]
[1765420368114,0.00467166,3213.7,3213.6,7.44106]
[1765420368314,7.45057166,3213.7,3213.6,0.15556]
[1765420369422,7.4459,3213.1,3213.0,0.00467166]
[1765420370522,2.3042,3213.0,3211.2,3.86000554]
[1765420370722,3.8406,3212.2,3211.2,3.86000554]
[1765420370923,7.4459,3212.2,3212.1,0.15563]
[1765420371524,2.3042,3211.8,3211.0,0.32111601]
[1765420371827,3.8406,3211.5,3211.4,0.31978433]
[1765420372223,3.8406,3211.5,3211.2,0.01454213]
[1765420372523,3.8406,3211.5,3211.4,0.54815907]
[1765420372722,3.8406,3211.5,3211.4,0.15566]
[1765420372914,3.8406,3211.5,3211.4,0.51906983]
[1765420373119,9.75384573,3211.8,3211.7,0.15565]
[1765420374628,2.30794573,3211.8,3211.7,3.94485]
[1765420374823,6.14854573,3211.8,3211.7,0.15565]
[1765420375228,6.14854573,3211.8,3211.7,0.47543433]
[1765420375924,9.75384573,3211.8,3211.7,0.47543433]
[1765420377924,9.75384573,3211.8,3211.7,0.15565]
[1765420378328,8.9987,3211.2,3211.1,0.00467166]
[1765420378532,6.6637,3211.1,3210.2,0.32303796]
[1765420378730,6.6637,3210.9,3210.1,3.73]
[1765420378928,6.6637,3210.9,3210.3,0.6252547]
[1765420379130,6.6637,3210.9,3210.2,0.02910284]
[1765420379331,6.6637,3209.8,3208.1,2.42520554]
[1765420379623,5.4864,3210.0,3209.9,0.15573]
[1765420379824,8.7916,3210.0,3209.9,0.15573]
[1765420380027,8.7916,3210.0,3209.9,0.7809575]
[1765420380222,2.1279,3210.0,3209.9,3.45723]
[1765420380428,0.00467166,3210.1,3210.0,6.81013]
[1765420380633,2.1279,3210.6,3210.5,3.45721]
[1765420380930,8.7916,3211.2,3211.1,0.15568]
[1765420381125,8.97164573,3211.8,3211.7,0.15565]
[1765420381729,0.00374573,3211.8,3211.7,7.12983433]
[1765420382032,0.00374573,3211.8,3211.7,3.77693433]
[1765420385138,0.15551,3214.7,3211.7,0.31978433]
[1765420385436,1.61033009,3214.5,3213.1,0.15558]
[1765420385632,1.11999545,3214.4,3213.1,0.15558]
[1765420385836,1.11999545,3214.3,3212.3,0.15562]
[1765420386129,1.11999545,3214.3,3212.4,0.15561]
[1765420386130,1.61033009,3213.9,3212.4,0.15561]
[1765420386334,0.00467166,3213.6,3213.0,0.00467166]
[1765420386528,1.11999545,3213.5,3212.4,0.15561]
[1765420386727,1.11999545,3213.4,3212.3,0.00226019]
[1765420386928,1.11999545,3213.3,3212.6,0.1556]
[1765420387228,0.00467166,3213.6,3212.3,0.00226019]
[1765420387426,0.00467166,3213.6,3212.6,0.00467166]
[1765420387636,1.12481578,3213.6,3212.6,0.00467166]
[1765420387833,0.00467166,3213.6,3213.3,0.15557]
[1765420388029,0.00467166,3213.6,3213.5,0.15556]
[1765420390030,0.00356515,3214.3,3212.6,0.00467166]
[1765420390031,0.00356515,3214.3,3214.0,0.15554]
[1765420390639,6.00356515,3214.3,3214.0,0.15554]
[1765420390938,0.00356515,3214.3,3214.0,0.15554]
[1765420391434,0.00356515,3214.3,3214.2,6.6544]
[1765420392039,0.00356515,3214.3,3214.2,8.59513]
[1765420392940,0.00467166,3214.5,3214.4,6.6544]
[1765420393736,2.1279,3215.4,3215.3,3.3015]
[1765420393943,0.00386563,3215.4,3215.3,3.30425618]
[1765420394243,0.00386563,3215.4,3215.3,6.65715618]
[1765420395330,0.00386563,3215.4,3215.3,3.30425618]
[1765420395731,0.00386563,3215.4,3215.3,6.75815618]
[1765420396243,0.00386563,3215.4,3215.3,6.91362618]
[1765420396738,1.11929213,3216.5,3215.6,6.8517]
[1765420396940,2.1279,3216.6,3215.6,7.00716]
[1765420397242,1.61033009,3217.7,3216.5,3.3978]
[1765420397540,0.15533,3218.2,3215.4,2.03779625]
[1765420397541,2.0584,3218.4,3217.7,3.55316]
[1765420397737,0.00402375,3218.4,3218.0,0.15534]
[1765420398041,0.008688,3218.4,3218.3,6.8517]
[1765420398235,0.008688,3218.4,3217.7,0.00746998]
[1765420398236,3.466088,3218.4,3217.7,0.00746998]
[1765420398437,0.008688,3218.4,3218.3,6.8517]
[1765420399240,0.008688,3218.4,3218.0,0.15534]
[1765420399436,0.008688,3218.4,3218.3,3.3978]
[1765420399636,4.85516271,3219.6,3218.8,6.8517]
[1765420399637,2.0584,3219.6,3218.8,6.8517]
[1765420399835,1.11814919,3219.5,3218.8,6.8517]
[1765420400238,2.0584,3219.6,3218.8,6.8517]
[1765420400433,1.11809298,3219.5,3218.8,6.8517]
[1765420400642,3.4574,3218.9,3217.9,1.80165]
[1765420400942,1.11809298,3218.8,3217.9,0.15535]
[1765420401145,1.61033009,3219.2,3217.9,0.15535]
[1765420401146,2.0584,3218.6,3217.9,0.15535]
[1765420401341,1.11833425,3218.5,3218.2,0.15533]
[1765420401546,0.00688543,3219.5,3218.4,6.8517]
[1765420401745,1.11818975,3219.4,3218.4,6.8517]
[1765420401941,1.11818975,3219.3,3218.5,0.15532]
[1765420402134,1.11818975,3219.2,3219.1,6.8517]
[1765420402742,1.11818975,3219.2,3219.1,3.3978]
[1765420403442,1.11818975,3219.2,3219.1,6.8517]
[1765420403644,4.57558975,3219.2,3218.8,0.1553]
[1765420403843,1.61721552,3219.5,3219.1,3.3978]
[1765420404145,1.11803399,3219.4,3219.1,3.3978]
[1765420404345,2.72836408,3219.3,3218.8,0.1553]
[1765420404547,2.72836408,3219.2,3218.8,0.1553]
[1765420404745,1.1181113,3219.1,3218.8,0.1553]
[1765420404949,1.1181113,3219.0,3218.9,3.3978]
[1765420405151,3.4574,3218.9,3217.9,0.15534]
[1765420405347,1.59471598,3218.5,3217.9,0.15534]
[1765420405553,2.71282728,3218.4,3217.9,0.15534]
[1765420405848,1.1181113,3218.3,3217.9,0.15534]
[1765420406051,2.71282728,3218.2,3218.1,3.3978]
[1765420406250,2.71282728,3218.2,3217.7,0.00746998]
[1765420406251,1.1181113,3218.2,3217.7,0.00746998]
[1765420406451,10.91153749,3217.8,3217.7,0.00746998]
[1765420406651,9.8794113,3217.8,3217.7,0.00746998]
[1765420407154,3.1765113,3217.8,3217.7,0.00746998]
[1765420407454,9.8794113,3217.8,3217.1,0.15539]
[1765420407653,1.5928044,3217.2,3217.1,7.00709]
[1765420407853,2.7109157,3217.2,3217.1,7.00709]
[1765420408053,9.6017113,3217.2,3216.3,0.15542]
[1765420408256,1.59271956,3216.8,3216.7,6.478]
[1765420408558,1.12129097,3216.8,3216.7,6.63693619]
[1765420409062,1.12129097,3216.8,3216.7,0.15893619]
[1765420409262,3.24503017,3216.8,3216.7,6.63693619]
[1765420409559,2.57405694,3217.2,3217.1,6.63339]
[1765420409758,6.31583207,3217.5,3217.1,6.63339]
[1765420410062,3.74177513,3217.9,3217.1,3.34009]
[1765420410661,2.06485512,3217.8,3217.1,3.34009]
[1765420410862,1.961,3217.2,3217.1,3.34009]
[1765420412560,1.961,3217.2,3216.7,0.00352619]
[1765420413454,6.0726,3216.7,3216.6,0.15541]
[1765420414054,6.0726,3216.5,3215.8,0.15545]
[1765420414258,6.0726,3215.9,3214.2,12.5639]
[1765420414457,1.961,3216.0,3215.3,3.1847]
[1765420414657,1.961,3215.4,3215.2,0.15548]
[1765420414963,3.0074,3215.3,3215.2,0.15548]
[1765420415159,3.0074,3215.3,3214.6,0.15551]
[1765420415363,0.00466425,3215.1,3214.6,0.15551]
[1765420415665,3.74643938,3215.1,3214.6,0.15551]
[1765420415867,0.00466425,3215.1,3215.0,6.63349]
[1765420416270,8.03826425,3215.1,3215.0,0.15549]
[1765420416466,1.96566425,3215.1,3215.0,0.15549]
[1765420416660,0.00466425,3215.1,3215.0,6.63349]
[1765420416860,6.0726,3214.6,3214.5,0.00466425]
[1765420417066,6.0726,3214.3,3212.1,2.79676271]
[1765420417364,1.60167947,3213.3,3213.2,6.478]
[1765420417658,5.69825211,3214.4,3213.3,0.15557]
[1765420417659,3.73725211,3214.2,3213.3,0.15557]
[1765420417863,3.73725211,3214.2,3213.4,0.15557]
[1765420418059,3.73725211,3214.2,3213.5,6.63356]
[1765420418060,0.00466425,3213.6,3213.5,6.63356]
[1765420418665,6.07726425,3213.6,3213.5,0.15556]
[1765420418861,0.00466425,3213.6,3213.5,6.35006414]
[1765420419171,0.00466425,3213.6,3213.5,6.50562414]
[1765420419372,0.00466425,3213.6,3213.5,3.21232414]
[1765420419571,0.00466425,3213.6,3213.5,6.50562414]
[1765420420365,0.00466425,3213.6,3213.5,3.34026]
[1765420420566,0.00466425,3213.6,3213.5,6.63356]
[1765420420868,0.00466425,3213.6,3213.5,3.34026]
[1765420421366,0.00466425,3213.6,3213.5,6.63356]
[1765420421565,3.26164068,3213.6,3213.5,6.63356]
[1765420421972,1.12440923,3213.6,3213.5,6.63356]
[1765420422874,1.12440923,3213.6,3213.5,3.34026]
[1765420423172,7.19700923,3213.6,3213.5,0.15556]
[1765420423370,4.13180923,3213.6,3213.4,0.002678]
[1765420423560,3.25616552,3213.5,3213.4,0.002678]
[1765420423761,6.26372396,3213.5,3213.4,0.002678]
[1765420424174,9.32892396,3213.5,3213.4,0.002678]
[1765420424370,9.32762066,3213.5,3213.4,0.002678]
[1765420424571,7.19250342,3213.5,3213.4,0.002678]
[1765420424775,1.961,3213.0,3211.6,1.3078]
[1765420424973,1.961,3212.4,3212.3,0.15562]
[1765420425174,3.08090342,3212.4,3212.3,0.15562]
[1765420425571,8.22300121,3212.4,3211.5,0.15565]
[1765420425869,1.59900679,3211.7,3211.6,3.18936425]
[1765420426073,2.71891021,3211.7,3211.6,3.34501425]
[1765420426374,1.11990342,3211.7,3211.6,6.63831425]
[1765420427076,0.18156342,3211.7,3211.6,6.63831425]
[1765420427674,0.18156342,3211.7,3211.6,3.34501425]
[1765420427873,6.25416342,3211.7,3211.6,0.16031425]
[1765420428072,0.18156342,3211.7,3211.6,6.63831425]
[1765420428468,6.25416342,3211.7,3211.6,0.16031425]
[1765420428669,6.25416342,3211.7,3211.6,0.00466425]
[1765420428670,7.85317021,3211.7,3211.6,0.00466425]
[1765420428879,6.25416342,3211.7,3211.6,0.00466425]
[1765420429881,1.77509078,3211.7,3211.6,3.34501425]
[1765420430280,3.18896342,3211.7,3211.6,0.16031425]
[1765420430480,8.0336,3211.6,3211.5,0.0027667]
[1765420430684,3.0074,3210.8,3210.7,0.1557]
[1765420430977,1.5929414,3211.3,3210.9,0.15568]
[1765420431171,1.5929414,3211.3,3211.2,0.15567]
[1765420431379,1.96567187,3211.6,3211.3,0.15566]
[1765420431686,0.00467187,3211.6,3211.5,6.63366]
[1765420432282,0.00467187,3211.6,3211.5,6.82247772]
[1765420434286,6.07727187,3211.6,3211.5,0.15566]
[1765420434786,0.00467187,3211.6,3211.5,0.15566]
[1765420434989,1.600607,3211.6,3211.5,6.93461376]
[1765420435377,2.12663502,3211.8,3211.7,6.55665]
[1765420435583,1.59740137,3211.9,3211.8,6.401]
[1765420435987,0.00345657,3212.4,3212.3,6.3668]
[1765420436189,1.96445657,3212.4,3212.3,3.1834]
[1765420436383,3.56185794,3212.4,3212.3,6.3668]
[1765420436579,0.00345657,3212.4,3212.3,6.66773949]
[1765420436786,1.60287575,3212.4,3212.3,6.66773949]
[1765420437088,1.60287575,3212.4,3212.3,6.46002]
[1765420437289,0.00345657,3212.4,3212.3,6.60533949]
[1765420437586,1.60435517,3212.4,3212.3,12.60533949]
[1765420437791,0.00345657,3212.4,3212.3,12.60533949]
[1765420437980,0.00345657,3212.4,3212.3,6.60533949]
[1765420438284,1.60435517,3212.4,3212.3,6.60533949]
[1765420438490,0.00345657,3212.4,3212.3,12.60533949]
[1765420438686,1.6008986,3212.5,3212.4,0.15561]
[1765420438991,1.6008986,3212.5,3212.4,6.39401]
[1765420439189,1.09676373,3212.5,3212.4,0.15561]
[1765420439487,1.09676373,3212.5,3212.4,6.33441]
[1765420439691,1.09676373,3212.5,3212.4,6.45065835]
[1765420439987,1.099552,3212.5,3212.4,6.45065835]
[1765420440193,1.60557047,3212.7,3212.6,4.0714]
[1765420440194,1.87e-06,3212.7,3212.6,4.0714]
[1765420440488,1.961,3213.6,3213.2,0.15557]
[1765420440489,6.4217,3213.3,3213.2,0.15557]
[1765420440689,2.6712328,3213.5,3213.3,1.9579]
[1765420440991,6.4217,3213.4,3213.3,0.15557]
[1765420441190,6.42429408,3213.4,3211.8,1.3112]
[1765420441391,5.1083,3213.0,3212.9,0.15559]
[1765420441593,8.2795,3213.0,3212.9,0.15559]
[1765420441982,8.2795,3213.0,3212.3,0.00467187]
[1765420442185,2.6712328,3212.9,3212.3,0.00467187]
[1765420442386,2.6712328,3212.8,3212.3,0.00467187]
[1765420442696,3.2505,3212.1,3212.0,0.15563]
[1765420442988,1.8578,3212.4,3212.0,2.25013]
[1765420443190,2.6712328,3212.7,3212.6,2.2421]
[1765420443386,1.8578,3213.0,3212.0,0.15989872]
[1765420443587,2.68885978,3212.6,3211.5,2.43064035]
[1765420443895,2.559e-05,3211.8,3211.7,0.16032187]
[1765420444090,1.8578,3213.0,3212.6,0.1556]
[1765420444091,2.68885978,3212.7,3212.6,0.1556]
[1765420444390,9.11055978,3212.7,3212.6,0.1556]
[1765420444590,1.8578,3212.4,3211.8,0.05814228]
[1765420444781,6.4217,3212.1,3212.0,0.15563]
[1765420444981,6.4217,3211.4,3211.3,0.00364253]
[1765420445184,2.69295395,3211.6,3211.3,0.15931253]
[1765420445389,6.4217,3211.5,3211.4,0.33432601]
[1765420445588,9.11465395,3211.5,3211.4,0.33432601]
[1765420446195,6.4217,3211.4,3211.3,0.15931253]
[1765420446694,2.69295395,3211.4,3211.3,0.15931253]
[1765420446898,2.69295395,3211.7,3211.6,0.15565]
[1765420447193,6.4217,3211.7,3211.6,0.15565]
[1765420447394,4.55075395,3211.8,3211.7,0.15565]
[1765420447592,6.7077798,3211.8,3211.7,0.15565]
[1765420447894,1.8578,3211.8,3211.7,0.15565]
[1765420448491,4.55075395,3211.8,3211.7,0.15565]
[1765420448897,10.97245395,3211.8,3211.7,0.15565]
[1765420449096,5.1083,3211.8,3211.7,0.15565]
[1765420449299,5.59505211,3211.8,3211.7,0.15565]
[1765420449590,5.59505211,3211.8,3211.3,0.43977297]
[1765420449799,2.69794851,3211.4,3211.3,0.59544297]
[1765420449990,3.73725211,3212.0,3211.3,0.43977297]
[1765420450193,3.73725211,3212.0,3211.9,0.15564]
[1765420450386,3.73725211,3212.0,3211.4,3.30120684]
[1765420450387,8.59566694,3212.3,3212.2,0.15562]
[1765420450591,3.2505,3212.3,3212.2,0.15562]
[1765420451001,6.4217,3212.3,3212.2,0.15562]
[1765420451792,2.0861,3211.8,3211.7,0.15565]
[1765420451997,8.9248,3211.8,3211.7,0.15565]
[1765420452291,9.93071283,3211.8,3211.7,0.17019123]
[1765420452499,9.93071283,3211.8,3211.7,0.15565]
[1765420452897,2.0861,3211.2,3211.1,0.00467187]
[1765420453101,9.93071283,3211.2,3211.1,0.16035187]
[1765420453487,9.93071283,3211.2,3209.8,2.43064035]
[1765420453691,3.342,3210.9,3210.8,0.15569]
[1765420453890,4.35086181,3210.9,3210.8,0.15793685]
[1765420454491,1.00886181,3210.9,3210.8,0.15793685]
[1765420454693,1.00886181,3210.9,3210.8,0.73954069]
[1765420455495,2.09077187,3211.2,3211.1,0.15568]
[1765420455699,2.09077187,3211.2,3210.8,3.46753957]
[1765420456099,2.09077187,3211.2,3210.6,3.48888281]
[1765420456301,2.09077187,3211.2,3210.5,0.00467187]
[1765420456502,2.09077187,3211.2,3211.1,0.15568]
[1765420456805,2.09429293,3211.2,3211.1,0.15849765]
[1765420457408,2.0861,3211.8,3211.7,0.15565]
[1765420457906,3.73725211,3212.2,3212.1,0.15563]
[1765420458108,1.8578,3212.4,3212.3,0.15562]
[1765420458400,1.86088508,3212.4,3212.3,0.15562]
[1765420460306,10.86412996,3212.4,3212.3,0.15562]
[1765420460506,9.6407026,3212.4,3212.3,0.15562]
[1765420460704,9.6407026,3212.4,3211.1,0.15849765]
[1765420460705,2.0861,3211.2,3211.1,0.15849765]
[1765420462300,1.70856,3211.2,3211.1,0.15849765]
[1765420462505,2.0861,3211.8,3211.7,0.15565]
[1765420462913,8.9248,3211.8,3211.7,0.15565]
[1765420463412,5.4281,3211.8,3211.7,0.15565]
[1765420464414,2.0861,3211.8,3211.7,0.15565]
[1765420464615,6.36921752,3211.8,3211.7,0.15565]
[1765420465217,9.86591752,3211.8,3211.7,0.15565]
[1765420465821,6.36921752,3211.8,3211.7,0.15565]
[1765420466421,9.86591752,3211.8,3211.7,0.15565]
[1765420470313,9.6519,3211.2,3211.1,0.00281765]
[1765420470727,5.8572,3211.2,3211.1,0.00281765]
[1765420470926,2.2536,3211.2,3211.1,0.00281765]
[1765420471222,10.59301752,3211.2,3211.1,0.15849765]
[1765420471418,9.6519,3211.2,3211.1,0.15849765]
[1765420471625,10.59301752,3211.2,3211.1,0.15849765]
[1765420472924,6.79831752,3211.2,3211.1,0.15849765]
[1765420473120,3.19471752,3211.2,3211.1,0.15849765]
[1765420473328,1.62420455,3214.0,3213.4,3.1148]
[1765420473531,2.2536,3214.2,3213.5,12.492]
[1765420473715,9.6519,3214.2,3214.1,0.15553]
[1765420474125,1.93862,3214.2,3214.1,3.19533]
[1765420474424,0.00385141,3214.2,3214.1,3.1982177]
[1765420474722,2.2536,3216.0,3215.3,0.15547]
[1765420475730,2.2536,3216.5,3216.4,0.15542]
[1765420476431,0.00466382,3216.8,3216.7,0.15541]
[1765420476627,2.2536,3217.2,3217.1,0.15539]
[1765420476924,2.2536,3217.9,3217.6,0.15536]
[1765420477130,2.25674719,3217.9,3217.6,0.15536]
[1765420477422,2.2536,3217.2,3217.0,12.502]
[1765420477629,2.2536,3217.2,3217.0,0.15539]
[1765420478025,2.2536,3217.2,3217.1,0.15539]
[1765420478531,0.00466382,3217.4,3217.3,0.15538]
[1765420478730,0.00466382,3217.4,3217.3,6.15538]
[1765420478930,0.00466382,3217.4,3217.3,9.6858914]
[1765420479130,0.00466382,3217.4,3217.3,16.1848914]
[1765420479524,0.00466382,3217.4,3217.3,3.6858914]
[1765420479725,0.00466382,3217.4,3217.3,0.15538]
[1765420479922,2.2536,3217.2,3216.7,0.00257275]
[1765420480232,2.2536,3217.2,3216.7,0.15797275]
[1765420481234,2.2536,3217.2,3216.1,0.00466382]
[1765420481235,8.2536,3217.2,3216.1,0.00466382]
[1765420481424,2.2536,3216.0,3215.8,0.15545]
[1765420482233,2.2536,3216.0,3215.8,0.1592514]
[1765420482431,2.2536,3215.2,3215.1,0.15548]
[1765420483432,2.25678072,3215.2,3215.1,0.15771363]
[1765420483639,2.25678072,3215.2,3215.1,1.363e-05]
[1765420484136,2.25678072,3215.2,3215.1,0.15549363]
[1765420484536,7.2e-07,3215.2,3215.1,3.61346301]
[1765420485225,2.25360072,3215.2,3215.1,3.61346301]
[1765420485825,2.25360072,3215.2,3215.1,3.73749363]
[1765420486030,2.25360072,3215.2,3215.1,0.15549363]
[1765420486436,2.25360072,3215.2,3214.8,0.00466382]
[1765420486830,2.2536,3214.4,3214.2,0.15553]
[1765420487034,2.2536,3214.4,3214.3,0.15552]
[1765420487438,2.2536,3214.4,3214.3,0.15814296]
[1765420488446,2.25360072,3215.2,3214.9,0.15549]
[1765420489138,2.25360072,3215.2,3215.1,0.15548]
[1765420491839,7.2e-07,3215.2,3215.1,0.15548]
[1765420492042,7.2e-07,3215.2,3215.1,11.2580499]
[1765420492243,7.2e-07,3215.2,3215.1,0.15548]
[1765420494436,7.39830072,3215.2,3215.1,0.15548]
[1765420495044,3.60360072,3215.2,3215.1,0.15548]
[1765420495347,7.2e-07,3215.2,3215.1,0.15548]
[1765420495843,3.60360072,3215.2,3215.1,0.15548]
[1765420496039,7.2e-07,3215.2,3215.1,0.15548]
[1765420496736,7.39830072,3215.2,3215.1,12.63448]
[1765420497540,7.39830072,3215.2,3214.3,0.00262296]
[1765420497735,2.2536,3215.1,3215.0,0.15549]
[1765420498141,2.2536,3215.1,3215.0,7.38469]
[1765420498334,7.2e-07,3215.2,3215.1,0.15548]
[1765420500044,3.70840072,3215.2,3215.1,12.63248]
[1765420500234,7.35900072,3215.2,3215.1,12.63248]
[1765420500737,7.35900072,3215.2,3212.9,0.3114]
[1765420500738,7.359,3214.1,3213.3,11.192]
[1765420500943,2.2163,3214.4,3212.5,3.24797354]
[1765420501145,2.2163,3214.4,3213.4,1.002]
[1765420501641,2.2163,3214.4,3213.4,3.94]
[1765420501840,2.2163,3214.4,3214.0,0.0079174]
[1765420503145,0.97488997,3214.3,3214.0,0.1634474]
[1765420503340,0.97488997,3214.2,3214.0,0.1634474]
[1765420503540,0.97488997,3214.1,3213.1,3.022]
[1765420503742,2.2163,3214.4,3213.1,3.022]
[1765420503944,0.9742872,3214.3,3213.1,3.022]
[1765420504142,0.9742872,3214.2,3213.1,3.022]
[1765420504342,0.9742872,3214.1,3213.1,3.022]
[1765420504538,0.00466382,3213.9,3213.3,0.00466382]
[1765420504737,7.359,3213.4,3213.3,0.00466382]
[1765420504935,7.359,3213.4,3213.3,0.16023382]
[1765420505441,7.359,3213.2,3212.7,0.1556]
[1765420505636,7.359,3212.8,3212.7,0.1556]
[1765420506036,5.9247,3213.0,3212.9,0.15559]
[1765420506440,9.5753,3213.0,3212.9,0.15559]
[1765420506641,9.57795843,3213.0,3212.9,0.15954255]
[1765420507850,2.21895843,3213.0,3212.9,0.15954255]
[1765420508152,0.00265843,3213.0,3212.9,7.11094255]